bitfinex-derivatives/quotes_SOLF0:USTF0_20241011
["timestamp","ask_amount","ask_price","bid_price","bid_amount"]
[1728658984967,3.59732,144.05,144.02,3.4729]
[1728658986259,0.12502,144.05,144.03,10.68]
[1728658986456,0.12502,144.05,144.04,14.1524]
[1728658988864,0.12502,144.05,144.04,3.4724]
[1728658989268,0.12502,144.05,144.04,14.1524]
[1728658990761,0.12502,144.05,144.04,3.4724]
[1728658991468,0.12502,144.05,144.04,14.1524]
[1728658992669,0.12502,144.05,144.04,3.4724]
[1728658993864,0.12502,144.05,144.03,8.7925]
[1728658994067,0.12502,144.05,144.03,19.4725]
[1728658994274,0.12502,144.05,144.03,16.0]
[1728658995173,0.12502,144.05,144.04,14.1524]
[1728658998670,3.59592,144.11,144.08,3.4713]
[1728658998974,0.12502,144.11,144.08,14.1513]
[1728658999173,3.59582,144.11,144.08,14.1513]
[1728658999372,0.12502,144.11,144.08,10.68]
[1728658999879,3.59592,144.11,144.08,14.1513]
[1728659001578,3.59592,144.11,144.09,3.4711]
[1728659001771,0.12502,144.11,144.08,10.68]
[1728659001972,0.12502,144.11,144.1,10.68]
[1728659002178,0.12502,144.11,144.1,14.151]
[1728659007079,1.48512,144.17,144.14,3.4699]
[1728659007279,1.48512,144.17,144.14,14.1499]
[1728659007474,4.95452,144.17,144.14,14.1499]
[1728659007668,0.12502,144.17,144.16,3.4695]
[1728659007876,0.12502,144.17,144.11,5.32]
[1728659008077,3.59452,144.17,144.08,4.0166]
[1728659008269,3.59452,144.17,144.14,14.15]
[1728659011589,3.47,144.15,144.12,16.0]
[1728659012084,10.80502,144.17,144.12,10.68]
[1728659012283,3.4699,144.15,144.12,14.1504]
[1728659012781,10.68,144.16,144.12,10.68]
[1728659013084,10.68,144.15,144.11,10.68]
[1728659013786,3.4704,144.13,144.11,10.68]
[1728659014388,3.4704,144.13,144.1,8.7909]
[1728659014578,3.4704,144.13,144.1,19.4709]
[1728659014781,10.68,144.15,144.11,10.68]
[1728659014983,3.4701,144.14,144.11,14.1506]
[1728659015985,13.4052,144.16,144.11,14.1506]
[1728659016197,3.4703,144.13,144.11,14.1506]
[1728659022589,3.4706,144.12,144.09,19.4711]
[1728659022789,10.68,144.14,144.09,16.0]
[1728659023089,10.68,144.15,144.11,10.68]
[1728659023289,3.4702,144.14,144.11,14.1506]
[1728659024993,10.68,144.15,144.11,14.1506]
[1728659025182,3.4703,144.13,144.11,14.1506]
[1728659026492,3.4703,144.13,144.11,14.1507]
[1728659027390,6.15149364,144.16,144.06,74.96]
[1728659027595,10.68,144.1,144.03,6.03575176]
[1728659027893,3.4718,144.07,144.05,5.44502]
[1728659028090,10.68,144.1,144.05,5.44502]
[1728659028091,10.68,144.11,144.05,10.80502]
[1728659028795,3.4713,144.09,144.06,3.4718]
[1728659029400,10.68,144.11,144.05,10.80502]
[1728659029592,10.68,144.1,144.05,0.12502]
[1728659030103,3.4716,144.08,144.05,14.27692]
[1728659030295,10.68,144.11,144.06,10.68]
[1728659030595,3.4714,144.09,144.06,14.1517]
[1728659031799,3.4714,144.09,144.06,10.68]
[1728659032099,3.4711,144.1,144.07,3.4716]
[1728659032399,5.32,144.13,144.07,10.68]
[1728659032593,3.4709,144.11,144.08,3.4713]
[1728659032795,3.4709,144.11,144.07,10.68]
[1728659032991,16.0,144.13,144.08,10.68]
[1728659033188,3.4707,144.12,144.09,3.4711]
[1728659033393,11.9894,144.14,144.09,3.4711]
[1728659034104,11.9894,144.14,144.08,10.68]
[1728659034400,11.9894,144.14,144.05,1.54212]
[1728659034401,1.3094,144.14,144.1,14.1509]
[1728659035002,3.4705,144.12,144.1,14.1509]
[1728659035198,1.3094,144.14,144.1,14.1509]
[1728659035898,3.4704,144.13,144.1,14.1509]
[1728659036300,1.3094,144.14,144.1,14.1509]
[1728659036501,3.4703,144.13,144.1,14.1509]
[1728659038503,5.32,144.16,144.11,10.68]
[1728659038710,3.47,144.15,144.12,14.1504]
[1728659039608,10.68,144.16,144.12,14.1504]
[1728659039804,3.4701,144.14,144.12,14.1504]
[1728659040707,3.4706,144.12,144.09,25.0111]
[1728659040907,10.68,144.15,144.09,21.54]
[1728659041104,10.68,144.15,144.09,16.0]
[1728659041304,10.68,144.15,144.11,10.68]
[1728659041504,10.68,144.15,144.11,14.1506]
[1728659042107,10.68,144.15,144.11,10.68]
[1728659042410,3.4704,144.13,144.11,10.68]
[1728659043714,3.4704,144.13,144.11,14.1507]
[1728659044214,3.4701,144.14,144.12,14.1504]
[1728659045708,3.4703,144.13,144.11,14.1506]
[1728659045908,3.4703,144.13,144.09,21.27]
[1728659046114,10.68,144.14,144.09,21.27]
[1728659046310,3.4709,144.11,144.09,24.7411]
[1728659046510,3.4709,144.11,144.09,19.4711]
[1728659047119,3.4706,144.12,144.09,19.4711]
[1728659047616,3.4706,144.12,144.1,3.4709]
[1728659047820,3.4701,144.14,144.11,10.68]
[1728659048210,3.4701,144.14,144.12,14.1504]
[1728659049113,3.4699,144.15,144.12,14.1504]
[1728659049323,10.80502,144.17,144.12,14.1504]
[1728659049713,3.47,144.15,144.12,14.1504]
[1728659051018,3.4705,144.12,144.11,6.37]
[1728659051220,10.68,144.16,144.1,16.0]
[1728659052124,3.4704,144.13,144.1,19.4708]
[1728659053024,3.4704,144.13,144.1,24.8208]
[1728659053920,3.4704,144.13,144.1,14.1408]
[1728659054223,3.4704,144.13,144.1,24.8208]
[1728659055022,10.68,144.16,144.12,3.4704]
[1728659055621,3.4698,144.15,144.13,3.4702]
[1728659055824,3.4698,144.15,144.12,10.68]
[1728659056018,3.4701,144.14,144.12,14.1504]
[1728659057321,3.4701,144.14,144.12,10.68]
[1728659057520,3.4703,144.13,144.11,14.1506]
[1728659058021,10.68,144.16,144.1,10.67]
[1728659058220,3.4704,144.13,144.11,10.68]
[1728659059427,3.4704,144.13,144.11,14.1507]
[1728659060425,3.4704,144.13,144.1,10.67]
[1728659060620,3.4704,144.13,144.1,24.8208]
[1728659061115,10.68,144.16,144.1,24.8208]
[1728659061320,3.4705,144.12,144.1,24.8208]
[1728659062122,3.4705,144.12,144.1,21.35]
[1728659062532,3.4707,144.11,144.1,21.35]
[1728659062922,10.68,144.15,144.1,24.821]
[1728659064429,3.4706,144.12,144.1,24.821]
[1728659066732,3.4706,144.12,144.1,21.35]
[1728659066927,3.4707,144.11,144.1,21.35]
[1728659067125,10.68,144.15,144.1,16.03]
[1728659067326,10.68,144.15,144.1,19.501]
[1728659067837,3.4701,144.14,144.1,19.501]
[1728659068034,10.68,144.15,144.1,19.501]
[1728659068230,0.12502,144.17,144.13,10.68]
[1728659068440,0.12502,144.17,144.15,10.68]
[1728659069032,0.12502,144.17,144.16,10.68]
[1728659069939,0.12502,144.17,144.16,14.1495]
[1728659070141,0.12502,144.17,144.16,20.5195]
[1728659071342,0.12502,144.17,144.16,6.37]
[1728659072344,3.59432,144.17,144.16,6.37]
[1728659073639,0.12502,144.17,144.16,17.05]
[1728659073841,0.12502,144.17,144.16,20.5195]
[1728659076036,0.12502,144.17,144.16,25.7995]
[1728659076745,10.80502,144.23,144.19,3.4687]
[1728659076933,10.80502,144.23,144.19,14.1487]
[1728659077340,0.12502,144.23,144.19,14.1487]
[1728659077543,1.4256,144.28,144.22,10.68]
[1728659077739,1.4256,144.28,144.23,10.68]
[1728659077740,12.1056,144.28,144.23,10.68]
[1728659077947,12.1056,144.28,144.22,10.68]
[1728659078246,12.1056,144.28,144.24,3.4675]
[1728659078634,3.59162,144.29,144.2,5.28]
[1728659078635,0.12502,144.29,144.25,10.68]
[1728659078839,0.12502,144.29,144.28,3.4666]
[1728659080841,0.12502,144.29,144.28,14.1466]
[1728659081437,0.12502,144.29,144.28,3.4666]
[1728659082847,0.12502,144.29,144.28,14.1466]
[1728659083046,0.12502,144.29,144.28,19.4266]
[1728659083242,85.22636342,144.34,144.28,15.96]
[1728659083445,10.68,144.33,144.28,5.28]
[1728659083748,10.68,144.33,144.28,15.96]
[1728659084345,10.68,144.31,144.28,5.28]
[1728659085145,10.68,144.31,144.29,3.4662]
[1728659085545,10.68,144.3,144.26,5.28]
[1728659085741,10.68,144.31,144.27,10.68]
[1728659085949,10.68,144.32,144.28,10.68]
[1728659087544,10.68,144.32,144.3,3.4661]
[1728659088248,88.69166342,144.34,144.3,3.466]
[1728659088449,10.68,144.32,144.3,3.466]
[1728659089250,10.68,144.31,144.29,3.4663]
[1728659089746,10.68,144.31,144.28,10.68]
[1728659090543,10.68,144.31,144.29,3.4664]
[1728659090939,10.68,144.31,144.27,10.68]
[1728659091144,10.68,144.31,144.27,14.1467]
[1728659091344,10.68,144.31,144.27,10.68]
[1728659091637,14.146,144.31,144.28,3.4665]
[1728659091941,10.68,144.31,144.28,14.1465]
[1728659092250,10.68,144.31,144.26,5.28]
[1728659092450,10.68,144.3,144.27,3.4668]
[1728659092650,10.68,144.3,144.26,15.96]
[1728659092849,10.68,144.32,144.27,10.68]
[1728659093548,3.4663,144.3,144.27,14.1468]
[1728659094855,3.4663,144.3,144.28,5.12]
[1728659096754,3.4664,144.29,144.28,5.12]
[1728659099054,3.4663,144.3,144.28,5.12]
[1728659099354,10.68,144.32,144.28,5.12]
[1728659100061,3.4664,144.29,144.28,5.12]
[1728659101155,3.4663,144.3,144.28,5.12]
[1728659101862,3.4663,144.3,144.28,8.5866]
[1728659102256,10.68,144.32,144.28,8.5866]
[1728659102453,3.466,144.31,144.29,3.4663]
[1728659102663,10.68,144.33,144.29,3.4663]
[1728659103566,3.4658,144.32,144.29,3.4663]
[1728659103972,10.68,144.32,144.28,5.12]
[1728659104268,3.466,144.31,144.28,15.8]
[1728659104461,1.44042,144.35,144.29,10.68]
[1728659104664,3.4656,144.33,144.3,10.68]
[1728659105166,10.68,144.34,144.3,10.68]
[1728659105467,10.68,144.33,144.28,5.12]
[1728659105661,10.68,144.32,144.28,15.8]
[1728659106166,10.68,144.3,144.28,5.12]
[1728659106663,3.4662,144.3,144.28,5.12]
[1728659106966,10.68,144.31,144.28,5.12]
[1728659107358,3.4663,144.3,144.28,5.12]
[1728659108063,10.68,144.31,144.28,5.12]
[1728659108268,3.4659,144.32,144.29,3.4664]
[1728659108459,3.4659,144.32,144.28,5.12]
[1728659108460,10.68,144.32,144.28,5.12]
[1728659108664,3.4661,144.31,144.28,8.5865]
[1728659108966,3.4661,144.31,144.28,5.12]
[1728659109168,10.68,144.32,144.28,5.12]
[1728659110066,3.4661,144.31,144.28,8.5865]
[1728659110872,14.1461,144.31,144.28,8.5865]
[1728659111267,10.68,144.31,144.28,5.12]
[1728659111474,3.4662,144.3,144.28,5.12]
[1728659111773,10.68,144.31,144.28,5.12]
[1728659112070,10.68,144.31,144.29,3.4663]
[1728659113771,10.68,144.31,144.28,5.12]
[1728659113966,14.1461,144.31,144.28,8.5865]
[1728659114570,3.4664,144.29,144.28,5.12]
[1728659114970,14.1464,144.29,144.28,5.12]
[1728659115373,3.4668,144.28,144.22,5.3]
[1728659115674,10.68,144.27,144.24,3.4674]
[1728659116180,14.147,144.27,144.24,3.4674]
[1728659116570,14.147,144.27,144.22,15.98]
[1728659116571,3.467,144.27,144.25,3.4673]
[1728659117078,14.1467,144.28,144.25,3.4673]
[1728659117574,14.1467,144.28,144.25,3.4672]
[1728659117773,10.68,144.28,144.23,17.36502]
[1728659117971,14.1466,144.29,144.26,3.4669]
[1728659118172,14.1466,144.29,144.23,17.36502]
[1728659118477,10.68,144.29,144.25,10.68]
[1728659118671,10.68,144.28,144.24,10.68]
[1728659118977,3.4669,144.27,144.24,10.68]
[1728659119572,10.68,144.28,144.24,10.68]
[1728659119772,14.1467,144.28,144.24,10.68]
[1728659119968,14.1467,144.28,144.26,3.467]
[1728659120168,10.68,144.29,144.26,3.467]
[1728659120364,14.1465,144.29,144.26,3.467]
[1728659121175,11.9825,144.31,144.25,10.68]
[1728659121372,3.4662,144.3,144.28,3.4665]
[1728659122076,3.4662,144.3,144.27,3.4667]
[1728659123276,10.68,144.28,144.23,1.38502]
[1728659123482,10.68,144.28,144.24,5.3]
[1728659123969,14.1467,144.28,144.25,3.4673]
[1728659125577,10.68,144.28,144.25,3.4673]
[1728659125781,10.68,144.28,144.24,5.3]
[1728659125982,1.3025,144.31,144.24,8.7675]
[1728659125983,10.68,144.27,144.24,8.7675]
[1728659126585,3.4673,144.26,144.24,8.7675]
[1728659126780,10.68,144.29,144.24,15.98]
[1728659126972,10.68,144.29,144.25,3.4673]
[1728659127471,3.4667,144.28,144.25,3.4673]
[1728659127678,10.68,144.29,144.24,15.98]
[1728659127980,10.68,144.29,144.26,3.467]
[1728659128580,14.1465,144.29,144.26,3.467]
[1728659130080,3.4663,144.3,144.27,3.4667]
[1728659130280,14.1463,144.3,144.27,3.4667]
[1728659133082,14.1463,144.3,144.28,3.4666]
[1728659133281,0.12502,144.35,144.27,10.68]
[1728659133585,14.1456,144.33,144.27,10.68]
[1728659133784,14.1456,144.33,144.3,3.466]
[1728659135786,14.1456,144.33,144.31,1.27]
[1728659137283,0.12502,144.35,144.31,1.27]
[1728659137580,0.12502,144.35,144.31,11.95]
[1728659137783,0.12502,144.35,144.32,10.68]
[1728659138087,0.12502,144.35,144.34,3.4652]
[1728659138781,0.12502,144.35,144.34,14.1452]
[1728659138988,0.12502,144.41,144.4,3.4638]
[1728659141088,1e-08,144.41,144.4,14.1438]
[1728659142890,1e-08,144.41,144.4,3.4638]
[1728659145197,1e-08,144.41,144.4,14.1438]
[1728659150406,7.59103843,144.47,144.46,3.4623]
[1728659150705,7.59103843,144.47,144.46,14.1423]
[1728659150906,7.59103843,144.47,144.46,3.4623]
[1728659151800,18.27103843,144.47,144.44,5.3]
[1728659151995,7.59103843,144.47,144.44,5.3]
[1728659152300,7.59103843,144.47,144.44,15.98]
[1728659152594,7.59103843,144.47,144.44,5.3]
[1728659152902,18.27103843,144.47,144.43,5.3]
[1728659153303,3.4625,144.46,144.43,8.7629]
[1728659153695,7.59103843,144.47,144.44,10.68]
[1728659154405,7.59103843,144.47,144.45,3.4625]
[1728659154806,7.59103843,144.47,144.44,10.68]
[1728659155009,11.05313843,144.47,144.44,10.68]
[1728659156412,11.05313843,144.47,144.45,3.4626]
[1728659156609,7.59103843,144.47,144.42,2.7083]
[1728659156805,7.59103843,144.47,144.43,5.3]
[1728659157001,7.59103843,144.47,144.43,8.7629]
[1728659157205,3.4624,144.46,144.43,8.7629]
[1728659157407,7.59103843,144.47,144.43,15.98]
[1728659157606,7.59103843,144.47,144.44,3.4626]
[1728659158212,7.59103843,144.47,144.43,19.443]
[1728659158704,3.4626,144.45,144.43,5.3]
[1728659158913,3.4626,144.45,144.43,15.98]
[1728659159108,3.4626,144.45,144.42,14.1431]
[1728659159310,3.4628,144.44,144.43,5.3]
[1728659159711,3.4628,144.44,144.42,10.68]
[1728659160010,3.4628,144.44,144.42,15.98]
[1728659160719,3.4624,144.46,144.43,14.143]
[1728659161013,7.59103843,144.47,144.43,10.68]
[1728659161210,7.59103843,144.47,144.42,5.3]
[1728659161415,7.59103843,144.47,144.45,10.68]
[1728659161803,7.59103843,144.47,144.46,8.7623]
[1728659162917,7.59103843,144.47,144.46,19.4423]
[1728659165210,11.05313843,144.47,144.46,5.3]
[1728659165415,7.59103843,144.47,144.46,5.3]
[1728659166720,7.59103843,144.47,144.46,6.58]
[1728659167019,11.05313843,144.47,144.46,6.58]
[1728659167207,11.05313843,144.47,144.46,1.28]
[1728659167609,21.73313843,144.47,144.46,1.28]
[1728659170118,18.27103843,144.47,144.41,19.4434]
[1728659170312,3.4631,144.43,144.41,14.1434]
[1728659170618,3.4631,144.43,144.41,19.4434]
[1728659170820,10.68,144.45,144.41,19.4434]
[1728659171022,3.4629,144.44,144.41,19.4434]
[1728659171321,3.4629,144.44,144.41,14.1434]
[1728659171523,3.4629,144.44,144.41,19.4434]
[1728659171915,10.68,144.45,144.41,19.4434]
[1728659172116,3.4629,144.44,144.41,19.4434]
[1728659172316,10.68,144.45,144.41,19.4434]
[1728659172517,10.68,144.45,144.41,5.3]
[1728659173125,3.463,144.44,144.41,8.7635]
[1728659173718,3.4627,144.45,144.42,10.68]
[1728659174720,3.4627,144.45,144.42,14.1432]
[1728659175623,3.4627,144.45,144.42,3.4632]
[1728659175922,3.4627,144.45,144.41,15.98]
[1728659176227,3.4627,144.45,144.42,3.4632]
[1728659176722,10.68,144.46,144.42,3.4632]
[1728659176930,3.4629,144.44,144.42,3.4632]
[1728659177129,7.59103843,144.47,144.42,3.4632]
[1728659177321,3.4629,144.44,144.41,5.3]
[1728659177522,10.68,144.44,144.41,8.7635]
[1728659177726,10.68,144.44,144.41,11.4135]
[1728659177929,3.4631,144.43,144.41,7.95]
[1728659178236,10.68,144.44,144.41,7.95]
[1728659178623,10.68,144.45,144.42,3.4633]
[1728659179129,3.4631,144.43,144.41,11.4134]
[1728659179332,10.68,144.45,144.41,7.95]
[1728659179526,7.59103843,144.47,144.41,2.65]
[1728659179729,3.4632,144.43,144.41,2.65]
[1728659180034,11.9688,144.46,144.41,2.65]
[1728659180326,11.9688,144.46,144.43,3.4629]
[1728659180528,11.9688,144.46,144.42,10.68]
[1728659180729,3.463,144.44,144.41,6.1134]
[1728659180930,3.463,144.44,144.41,2.65]
[1728659181432,3.4632,144.43,144.41,2.65]
[1728659181628,10.68,144.45,144.41,2.65]
[1728659182030,10.68,144.43,144.41,2.65]
[1728659182528,3.4633,144.42,144.41,2.65]
[1728659182732,10.68,144.43,144.41,2.65]
[1728659183427,10.68,144.43,144.41,6.07]
[1728659183631,10.68,144.43,144.41,9.5335]
[1728659183632,14.1432,144.43,144.41,9.5335]
[1728659184034,14.1432,144.43,144.41,11.1235]
[1728659184635,14.1432,144.43,144.41,16.6135]
[1728659185632,3.4632,144.43,144.41,16.6135]
[1728659186329,3.4632,144.43,144.41,13.15]
[1728659186532,10.68,144.44,144.41,13.15]
[1728659187331,2.6292,144.46,144.41,13.15]
[1728659187529,10.68,144.45,144.41,13.15]
[1728659188032,3.4629,144.44,144.41,13.15]
[1728659188240,10.68,144.45,144.41,13.15]
[1728659188541,3.463,144.44,144.41,16.6134]
[1728659188836,10.68,144.42,144.41,13.15]
[1728659189035,14.1433,144.42,144.41,11.0088]
[1728659189333,10.68,144.42,144.35,5.44502]
[1728659189639,3.4641,144.39,144.36,3.4645]
[1728659190341,3.4641,144.39,144.35,16.12502]
[1728659190541,3.4641,144.39,144.35,5.44502]
[1728659190929,3.4641,144.39,144.35,6.19502]
[1728659191136,3.4641,144.39,144.36,3.4646]
[1728659191746,10.68,144.38,144.35,6.19502]
[1728659192040,10.68,144.38,144.35,9.65982]
[1728659192236,10.68,144.38,144.35,4.33982]
[1728659192543,10.68,144.37,144.35,0.87502]
[1728659193038,14.1447,144.36,144.35,0.87502]
[1728659193552,3.4656,144.33,144.3,2.7984]
[1728659193730,3.4656,144.33,144.29,5.44502]
[1728659193731,10.68,144.32,144.29,5.44502]
[1728659194444,14.1457,144.32,144.29,8.91132]
[1728659194837,10.68,144.32,144.29,5.44502]
[1728659195133,10.68,144.32,144.3,3.4661]
[1728659195443,10.68,144.32,144.29,5.44502]
[1728659195845,3.4659,144.32,144.29,8.91122]
[1728659196052,3.4659,144.32,144.29,5.44502]
[1728659196336,3.4655,144.33,144.31,3.4659]
[1728659196541,10.68,144.34,144.31,3.4659]
[1728659196746,0.12502,144.41,144.32,10.68]
[1728659196943,10.68,144.37,144.34,3.465]
[1728659197443,14.1446,144.37,144.34,3.465]
[1728659197841,10.68,144.36,144.33,3.4653]
[1728659198038,10.68,144.35,144.29,0.12502]
[1728659198239,10.68,144.35,144.29,10.80502]
[1728659198442,10.68,144.35,144.31,10.68]
[1728659198746,10.68,144.36,144.31,10.68]
[1728659198934,10.68,144.36,144.32,3.4656]
[1728659198935,14.1449,144.36,144.32,3.4656]
[1728659199134,14.1449,144.36,144.31,10.68]
[1728659199332,10.68,144.34,144.29,0.12502]
[1728659199534,14.1453,144.34,144.31,3.4658]
[1728659199732,10.68,144.34,144.29,16.12502]
[1728659200142,14.1458,144.32,144.29,8.91132]
[1728659200344,10.68,144.31,144.29,8.91132]
[1728659200551,3.4658,144.32,144.29,5.44502]
[1728659200740,14.1456,144.33,144.3,3.466]
[1728659201949,10.68,144.33,144.31,3.4658]
[1728659202442,10.68,144.33,144.29,0.12502]
[1728659202646,14.1456,144.33,144.3,3.466]
[1728659204941,10.68,144.33,144.29,0.12502]
[1728659205139,10.68,144.33,144.31,3.4658]
[1728659205841,10.68,144.33,144.32,3.4657]
[1728659206052,0.12502,144.41,144.32,10.68]
[1728659206346,14.1445,144.37,144.34,3.4652]
[1728659206939,14.1445,144.37,144.33,10.68]
[1728659207138,14.1445,144.37,144.34,3.465]
[1728659207638,10.68,144.36,144.34,3.465]
[1728659208249,3.4651,144.35,144.32,3.4656]
[1728659208640,3.4651,144.35,144.31,2.616]
[1728659208844,14.1448,144.36,144.33,3.4653]
[1728659209246,10.68,144.36,144.31,2.616]
[1728659209540,3.4651,144.35,144.33,3.4654]
[1728659209747,5.32,144.4,144.31,2.616]
[1728659210046,10.68,144.36,144.34,3.4651]
[1728659210244,10.68,144.36,144.31,2.616]
[1728659210439,10.68,144.35,144.31,2.616]
[1728659211448,14.1451,144.35,144.32,3.4656]
[1728659214846,0.12502,144.41,144.31,2.616]
[1728659215044,10.68,144.35,144.31,2.616]
[1728659216049,10.68,144.35,144.34,3.4652]
[1728659216653,10.68,144.36,144.34,3.4652]
[1728659217551,3.4646,144.37,144.36,3.4647]
[1728659217552,10.68,144.37,144.36,3.4647]
[1728659219352,10.68,144.37,144.35,3.4649]
[1728659219854,10.68,144.36,144.31,18.616]
[1728659220764,14.1449,144.36,144.31,18.616]
[1728659221360,14.1449,144.36,144.34,3.4651]
[1728659221653,14.1444,144.38,144.33,10.68]
[1728659222060,14.1444,144.38,144.35,3.4648]
[1728659222259,14.1446,144.37,144.35,3.4648]
[1728659223057,14.1446,144.37,144.34,3.4651]
[1728659223260,14.1446,144.37,144.32,10.68]
[1728659224556,14.1446,144.37,144.35,3.4649]
[1728659225460,14.1446,144.37,144.32,10.68]
[1728659225648,14.1446,144.37,144.35,3.4649]
[1728659226159,3.4646,144.37,144.35,3.4649]
[1728659226461,14.1446,144.37,144.35,3.4649]
[1728659227757,5.32,144.4,144.33,10.68]
[1728659227953,10.68,144.39,144.34,10.68]
[1728659228860,10.68,144.36,144.34,3.4652]
[1728659229158,10.68,144.35,144.31,7.936]
[1728659230156,10.68,144.35,144.34,3.4652]
[1728659230564,3.4649,144.36,144.34,3.4652]
[1728659230760,10.68,144.35,144.34,3.4652]
[1728659231665,14.145,144.35,144.33,3.4653]
[1728659232164,10.68,144.35,144.31,7.936]
[1728659232360,3.4652,144.34,144.32,3.4656]
[1728659232569,10.68,144.35,144.31,7.936]
[1728659232861,10.68,144.35,144.33,3.4653]
[1728659233455,3.465,144.36,144.31,7.936]
[1728659233456,3.465,144.36,144.32,10.68]
[1728659233659,3.465,144.36,144.34,3.4651]
[1728659233660,14.145,144.36,144.34,3.4651]
[1728659234169,3.465,144.36,144.34,3.4651]
[1728659234358,5.44502,144.41,144.35,3.4648]
[1728659234562,10.68,144.37,144.35,3.4648]
[1728659234970,14.1445,144.37,144.35,3.4648]
[1728659235466,10.68,144.37,144.32,10.68]
[1728659235670,3.4648,144.36,144.34,3.4651]
[1728659235865,3.4648,144.36,144.31,7.936]
[1728659235866,10.68,144.36,144.31,18.616]
[1728659236357,3.465,144.35,144.32,3.4656]
[1728659236562,10.68,144.34,144.32,3.4656]
[1728659236766,10.68,144.33,144.29,0.12502]
[1728659236960,10.68,144.3,144.29,3.59132]
[1728659237164,10.68,144.3,144.29,0.12502]
[1728659237466,14.1462,144.3,144.29,0.12502]
[1728659239169,3.4657,144.32,144.29,3.59142]
[1728659239366,10.68,144.31,144.29,3.59142]
[1728659239567,10.68,144.31,144.29,0.12502]
[1728659240465,14.1461,144.31,144.29,0.12502]
[1728659240672,10.68,144.31,144.29,0.12502]
[1728659241062,10.68,144.3,144.29,0.12502]
[1728659241969,10.68,144.34,144.31,3.4659]
[1728659242374,10.68,144.34,144.29,0.12502]
[1728659242571,5.28,144.36,144.3,10.68]
[1728659242776,10.68,144.35,144.3,10.68]
[1728659242974,3.4652,144.34,144.31,3.4657]
[1728659243275,10.68,144.36,144.31,10.68]
[1728659244075,3.465,144.35,144.32,3.4656]
[1728659247880,3.4653,144.34,144.32,3.4656]
[1728659248175,5.28,144.37,144.32,3.4656]
[1728659248671,3.4651,144.35,144.32,3.4656]
[1728659249377,3.4651,144.35,144.33,3.4654]
[1728659249581,5.28,144.37,144.33,3.4654]
[1728659249774,5.28,144.37,144.29,22.04502]
[1728659249775,3.4649,144.36,144.3,2.6876]
[1728659249980,5.28,144.37,144.34,3.465]
[1728659250376,21.92,144.38,144.34,3.465]
[1728659251276,3.4646,144.37,144.34,3.465]
[1728659252577,3.4646,144.37,144.35,3.465]
[1728659253678,76.3850567,144.4,144.36,3.4647]
[1728659253879,76.3850567,144.4,144.32,16.64]
[1728659254380,3.4644,144.38,144.35,3.4648]
[1728659254577,7.59103843,144.47,144.37,16.64]